[Event "44th Chess Olympiad Women 2022"]
[Site "Chennai"]
[Date "2022.08.08"]
[Round "10.7"]
[White "Repkova, Eva"]
[Black "Miranda Llanes, Yerisbel"]
[Result "1-0"]
[WhiteElo "2303"]
[BlackElo "2347"]
[Annotator "RC"]
[PlyCount "113"]
[EventDate "2022.??.??"]
[TimeControl "60"]

1. e4 {[%emt 0:00:03]} e5 {[%emt 0:00:21]} 2. Nf3 {[%emt 0:00:06]} Nc6 {
[%emt 0:00:08]} 3. Bc4 {[%emt 0:00:05]} Bc5 {[%emt 0:00:11]} 4. d3 {[%emt 0:00:
00]} Nf6 {[%emt 0:00:21]} 5. Bg5 {[%emt 0:00:31]} d6 {[%emt 0:03:31]} 6. c3 {
[%emt 0:03:09]} h6 {[%emt 0:10:24]} 7. Bh4 {[%emt 0:00:50]} Bg4 {[%emt 0:01:03]
} 8. Nbd2 {[%emt 0:02:39]} Qe7 {[%emt 0:01:38]} 9. b4 {[%emt 0:07:46]} Bb6 {
[%emt 0:00:10]} 10. a4 {[%emt 0:00:05]} a5 {[%emt 0:05:47]} 11. b5 {[%emt 0:00:
00]} Nd8 {[%emt 0:00:27]} 12. h3 {[%emt 0:00:20]} Bd7 {[%emt 0:06:56]} 13. O-O
{[%emt 0:10:35]} g5 {[%emt 0:06:26]} 14. Bg3 {[%emt 0:00:04]} g4 {[%emt 0:00:
00]} 15. hxg4 {[%emt 0:00:16]} Bxg4 {[%emt 0:00:18]} 16. d4 {[%emt 0:02:15]}
Nh5 {[%emt 0:04:35]} 17. Bh2 {[%emt 0:03:25]} Ne6 {[%emt 0:06:11]} 18. Bd5 {
[%emt 0:03:30]} O-O-O {[%emt 0:04:07]} 19. dxe5 {[%emt 0:00:24]} Ng5 {[%emt 0:
00:00]} 20. exd6 {[%emt 0:01:34]} cxd6 {[%emt 0:01:57]} 21. Qe2 {[%emt 0:02:10]
} Rhg8 {[%emt 0:03:48]} 22. Qc4+ {[%emt 0:00:31]} Kb8 {[%emt 0:01:31]} 23. e5 {
[%emt 0:01:03]} Bh3 {[%emt 0:12:15]} 24. exd6 {[%emt 0:05:59]} Qf6 {[%emt 0:00:
00]} 25. Nd4 {[%emt 0:14:52]} Bxg2 {[%emt 0:05:20]} 26. Bxg2 {[%emt 0:00:02]}
Nh3+ {[%emt 0:00:11]} 27. Kh1 {[%emt 0:00:03]} Rxg2 {[%emt 0:01:26]} 28. Kxg2 {
[%emt 0:04:41]} Qg5+ {[%emt 0:06:00]} 29. Bg3 {[%emt 0:12:52]} N3f4+ {[%emt 0:
00:00]} 30. Kf3 {[%emt 0:01:20]} f5 {[%emt 0:00:22]} 31. Bxf4 {[%emt 0:05:25]}
Qg4+ {[%emt 0:00:39]} 32. Ke3 {[%emt 0:00:19]} Nxf4 {[%emt 0:00:11]} 33. N2f3 {
[%emt 0:02:57]} Rc8 {[%emt 0:01:16]} 34. Qb3 {[%emt 0:02:50]} Bxd4+ {[%emt 0:
00:00]} 35. Nxd4 {[%emt 0:01:40]} Rxc3+ {[%emt 0:01:50]} 36. Qxc3 {[%emt 0:00:
00]} Nd5+ {[%emt 0:00:05]} 37. Kd2 {[%emt 0:01:26]} Qf4+ {[%emt 0:00:18]} 38.
Qe3 {[%emt 0:00:13]} Nxe3 {[%emt 0:00:02]} 39. fxe3 {[%emt 0:00:05]} Qxd6 {
[%emt 0:00:15]} 40. Rxf5 {[%emt 0:00:46]} Qb4+ {[%emt 0:00:37]} 41. Kd3 {
[%emt 0:30:20]} Qb2 {[%emt 0:30:15]} 42. Rff1 {[%emt 0:03:44]} h5 {[%emt 0:00:
00]} 43. Rac1 {[%emt 0:03:52]} Ka7 {[%emt 0:00:00]} 44. Rb1 {[%emt 0:00:00]}
Qa3+ {[%emt 0:00:00]} 45. Rb3 {[%emt 0:00:00]} Qd6 {[%emt 0:00:00]} 46. b6+ {
[%emt 0:00:00]} Ka6 {[%emt 0:00:00]} 47. Rg1 {[%emt 0:00:00]} Qd7 {[%emt 0:00:
00]} 48. Kc3 {[%emt 0:00:00]} Qe8 {[%emt 0:00:00]} 49. Kd2 {[%emt 0:00:00]} Qf7
{[%emt 0:00:00]} 50. Rc1 {[%emt 0:00:00]} Qg8 {[%emt 0:00:00]} 51. Rb5 {
[%emt 0:13:55]} Qg2+ {[%emt 0:00:00]} 52. Kc3 {[%emt 0:00:00]} Qg7 {[%emt 0:00:
00]} 53. Kc2 {[%emt 0:00:00]} Qg2+ {[%emt 0:00:00]} 54. Kb1 {[%emt 0:00:00]}
Qg6+ {[%emt 0:00:00]} 55. Ka2 {[%emt 0:00:00]} Qg4 {[%emt 0:00:00]} 56. Ka3 {
[%emt 0:00:00]} Qh3 {[%emt 0:07:22]} 57. Nb3 {[%emt 0:00:00]} 1-0

[Event "44th Chess Olympiad Women 2022"]
[Site "Chennai"]
[Date "2022.08.08"]
[Round "10.7"]
[White "Sucikova, Svetlana"]
[Black "Forgas Moreno, Yaniela"]
[Result "1-0"]
[WhiteElo "2188"]
[BlackElo "2343"]
[Annotator "RC"]
[PlyCount "91"]
[EventDate "2022.??.??"]
[TimeControl "60"]

1. d4 {[%emt 0:00:38]} f5 {[%emt 0:00:27]} 2. g3 {[%emt 0:00:56]} Nf6 {[%emt 0:
00:00]} 3. Bg2 {[%emt 0:00:35]} g6 {[%emt 0:00:18]} 4. Nf3 {[%emt 0:00:37]} Bg7
{[%emt 0:00:15]} 5. O-O {[%emt 0:00:54]} O-O {[%emt 0:00:20]} 6. c4 {[%emt 0:
00:00]} d6 {[%emt 0:00:11]} 7. b3 {[%emt 0:01:33]} c6 {[%emt 0:00:43]} 8. Bb2 {
[%emt 0:00:43]} Na6 {[%emt 0:00:31]} 9. Nc3 {[%emt 0:01:20]} Qc7 {[%emt 0:00:
00]} 10. Qc2 {[%emt 0:02:44]} e5 {[%emt 0:05:48]} 11. e4 {[%emt 0:06:30]} Nb4 {
[%emt 0:06:01]} 12. Qe2 {[%emt 0:03:35]} fxe4 {[%emt 0:06:18]} 13. Nxe4 {
[%emt 0:02:02]} Nxe4 {[%emt 0:00:27]} 14. Qxe4 {[%emt 0:01:47]} Bf5 {[%emt 0:
00:00]} 15. Qh4 {[%emt 0:02:43]} h6 {[%emt 0:05:44]} 16. Bc3 {[%emt 0:11:14]}
Nc2 {[%emt 0:04:13]} 17. Rad1 {[%emt 0:02:23]} e4 {[%emt 0:13:18]} 18. Ne1 {
[%emt 0:22:04]} e3 {[%emt 0:00:58]} 19. Bf3 {[%emt 0:00:07]} Nxe1 {[%emt 0:00:
00]} 20. Rdxe1 {[%emt 0:07:21]} Bd3 {[%emt 0:12:11]} 21. Be2 {[%emt 0:03:29]}
exf2+ {[%emt 0:00:50]} 22. Rxf2 {[%emt 0:00:42]} Rxf2 {[%emt 0:00:10]} 23. Kxf2
{[%emt 0:01:23]} Rf8+ {[%emt 0:00:11]} 24. Bf3 {[%emt 0:07:50]} Qf7 {[%emt 0:
00:00]} 25. Qf4 {[%emt 0:04:54]} Qxf4 {[%emt 0:09:49]} 26. gxf4 {[%emt 0:00:08]
} Rxf4 {[%emt 0:00:12]} 27. Ke3 {[%emt 0:00:35]} g5 {[%emt 0:01:00]} 28. Bxc6 {
[%emt 0:00:54]} bxc6 {[%emt 0:00:42]} 29. Kxd3 {[%emt 0:00:09]} Kf7 {[%emt 0:
00:00]} 30. b4 {[%emt 0:02:20]} Rf2 {[%emt 0:02:29]} 31. Re2 {[%emt 0:01:18]}
Rxe2 {[%emt 0:03:35]} 32. Kxe2 {[%emt 0:00:02]} d5 {[%emt 0:00:44]} 33. Kd3 {
[%emt 0:04:50]} Ke6 {[%emt 0:00:44]} 34. a4 {[%emt 0:00:33]} Bf6 {[%emt 0:00:
00]} 35. b5 {[%emt 0:00:39]} Bd8 {[%emt 0:01:53]} 36. c5 {[%emt 0:01:32]} cxb5
{[%emt 0:00:40]} 37. axb5 {[%emt 0:00:02]} Bc7 {[%emt 0:00:28]} 38. h3 {
[%emt 0:02:11]} h5 {[%emt 0:00:31]} 39. Ke3 {[%emt 0:01:49]} g4 {[%emt 0:01:05]
} 40. hxg4 {[%emt 0:01:27]} hxg4 {[%emt 0:00:05]} 41. Be1 {[%emt 0:06:11]} Kf5
{[%emt 0:12:12]} 42. Bh4 {[%emt 0:03:14]} Bf4+ {[%emt 0:17:44]} 43. Kf2 {
[%emt 0:00:37]} Ke4 {[%emt 0:00:20]} 44. Bg3 {[%emt 0:01:26]} Be3+ {[%emt 0:00:
00]} 45. Kg2 {[%emt 0:01:43]} Bxd4 {[%emt 0:00:47]} 46. b6 {[%emt 0:00:39]} 1-0

[Event "44th Chess Olympiad Women 2022"]
[Site "Chennai"]
[Date "2022.08.08"]
[Round "10.8"]
[White "Antova, Gabriela"]
[Black "Munkhzul, Davaakhuu"]
[Result "1-0"]
[WhiteElo "2275"]
[BlackElo "2095"]
[Annotator "RC"]
[PlyCount "139"]
[EventDate "2022.??.??"]
[TimeControl "60"]

1. Nf3 {[%emt 0:00:07]} Nf6 {[%emt 0:00:10]} 2. b3 {[%emt 0:00:08]} e6 {
[%emt 0:01:40]} 3. Bb2 {[%emt 0:00:12]} Be7 {[%emt 0:00:16]} 4. c4 {[%emt 0:00:
00]} d5 {[%emt 0:07:10]} 5. g3 {[%emt 0:00:33]} dxc4 {[%emt 0:04:21]} 6. bxc4 {
[%emt 0:00:15]} b6 {[%emt 0:00:15]} 7. Bg2 {[%emt 0:02:17]} Bb7 {[%emt 0:00:13]
} 8. O-O {[%emt 0:00:57]} O-O {[%emt 0:01:07]} 9. e3 {[%emt 0:09:55]} Nc6 {
[%emt 0:07:59]} 10. Qe2 {[%emt 0:10:09]} Nb4 {[%emt 0:13:35]} 11. Ne1 {[%emt 0:
00:00]} Bxg2 {[%emt 0:02:22]} 12. Kxg2 {[%emt 0:00:17]} c5 {[%emt 0:00:10]} 13.
a3 {[%emt 0:06:24]} Nc6 {[%emt 0:00:48]} 14. f4 {[%emt 0:02:11]} Qd7 {[%emt 0:
00:00]} 15. d3 {[%emt 0:04:01]} a6 {[%emt 0:04:29]} 16. Nd2 {[%emt 0:07:19]} b5
{[%emt 0:02:43]} 17. g4 {[%emt 0:03:51]} Rfb8 {[%emt 0:02:54]} 18. g5 {[%emt 0:
00:00]} Ne8 {[%emt 0:01:20]} 19. Rf3 {[%emt 0:08:19]} e5 {[%emt 0:11:01]} 20.
fxe5 {[%emt 0:15:08]} bxc4 {[%emt 0:10:22]} 21. Nxc4 {[%emt 0:00:25]} Bxg5 {
[%emt 0:02:45]} 22. Kh1 {[%emt 0:05:14]} Rb3 {[%emt 0:04:47]} 23. Rd1 {[%emt 0:
00:00]} Rab8 {[%emt 0:02:26]} 24. Rd2 {[%emt 0:05:22]} Qd5 {[%emt 0:01:53]} 25.
Ng2 {[%emt 0:02:02]} Nd4 {[%emt 0:07:19]} 26. Bxd4 {[%emt 0:00:46]} cxd4 {
[%emt 0:00:03]} 27. e4 {[%emt 0:01:17]} Qd7 {[%emt 0:01:33]} 28. Rd1 {[%emt 0:
00:00]} Be7 {[%emt 0:01:23]} 29. Rdf1 {[%emt 0:03:25]} f6 {[%emt 0:01:03]} 30.
Nf4 {[%emt 0:01:26]} Rb1 {[%emt 0:01:30]} 31. Nd5 {[%emt 0:01:32]} Bd8 {
[%emt 0:00:08]} 32. Qg2 {[%emt 0:00:39]} Rxf1+ {[%emt 0:01:10]} 33. Rxf1 {
[%emt 0:00:06]} Qe6 {[%emt 0:01:01]} 34. Qf2 {[%emt 0:01:07]} Rb3 {[%emt 0:00:
00]} 35. Nf4 {[%emt 0:01:14]} Qe7 {[%emt 0:01:12]} 36. Qxd4 {[%emt 0:00:32]}
Rb5 {[%emt 0:00:54]} 37. exf6 {[%emt 0:01:08]} Nxf6 {[%emt 0:00:03]} 38. Ne3 {
[%emt 0:01:00]} Bb6 {[%emt 0:00:47]} 39. Qc4+ {[%emt 0:00:09]} Qf7 {[%emt 0:00:
00]} 40. Nfd5 {[%emt 0:00:56]} Bxe3 {[%emt 0:01:09]} 41. Nxe3 {[%emt 0:06:34]}
Qxc4 {[%emt 0:08:35]} 42. Nxc4 {[%emt 0:00:07]} Rb3 {[%emt 0:06:09]} 43. Rd1 {
[%emt 0:00:22]} Rc3 {[%emt 0:02:57]} 44. Nd6 {[%emt 0:11:32]} Ng4 {[%emt 0:00:
00]} 45. Kg1 {[%emt 0:02:55]} Rc2 {[%emt 0:01:23]} 46. Rb1 {[%emt 0:01:10]} h5
{[%emt 0:01:43]} 47. h4 {[%emt 0:01:38]} Ne5 {[%emt 0:00:33]} 48. Rb8+ {
[%emt 0:02:08]} Kh7 {[%emt 0:00:02]} 49. Nf5 {[%emt 0:01:17]} Nf3+ {[%emt 0:00:
00]} 50. Kf1 {[%emt 0:00:06]} Nh2+ {[%emt 0:02:03]} 51. Ke1 {[%emt 0:02:57]}
Nf3+ {[%emt 0:00:05]} 52. Kd1 {[%emt 0:01:06]} Rd2+ {[%emt 0:00:35]} 53. Kc1 {
[%emt 0:00:04]} Rxd3 {[%emt 0:00:05]} 54. Rb7 {[%emt 0:00:27]} Nd4 {[%emt 0:00:
00]} 55. Rxg7+ {[%emt 0:02:19]} Kh8 {[%emt 0:00:01]} 56. Rg5 {[%emt 0:01:00]}
Nxf5 {[%emt 0:01:26]} 57. Rxh5+ {[%emt 0:00:14]} Kg7 {[%emt 0:00:04]} 58. Rg5+
{[%emt 0:01:45]} Kh6 {[%emt 0:00:52]} 59. Rxf5 {[%emt 0:00:42]} Rxa3 {[%emt 0:
00:00]} 60. Kd2 {[%emt 0:00:37]} Kg7 {[%emt 0:01:12]} 61. h5 {[%emt 0:00:55]}
Kh6 {[%emt 0:00:32]} 62. e5 {[%emt 0:00:22]} Ra5 {[%emt 0:00:21]} 63. Kd3 {
[%emt 0:00:12]} Rd5+ {[%emt 0:00:32]} 64. Ke4 {[%emt 0:00:17]} Rd1 {[%emt 0:00:
00]} 65. e6 {[%emt 0:00:20]} Kg7 {[%emt 0:00:45]} 66. Ke5 {[%emt 0:00:38]} a5 {
[%emt 0:00:11]} 67. e7 {[%emt 0:00:41]} Re1+ {[%emt 0:00:46]} 68. Kd6 {[%emt 0:
00:00]} a4 {[%emt 0:00:03]} 69. Rf8 {[%emt 0:00:35]} Rd1+ {[%emt 0:01:06]} 70.
Kc5 {[%emt 0:00:08]} 1-0

[Event "44th Chess Olympiad Women 2022"]
[Site "Chennai"]
[Date "2022.08.08"]
[Round "10.8"]
[White "Enkhtuul, Altan-Ulzii"]
[Black "Salimova, Nurgyul"]
[Result "1/2-1/2"]
[WhiteElo "2267"]
[BlackElo "2416"]
[Annotator "RC"]
[PlyCount "118"]
[EventDate "2022.??.??"]
[TimeControl "60"]

1. d4 {[%emt 0:00:02]} Nf6 {[%emt 0:00:06]} 2. Nf3 {[%emt 0:00:04]} e6 {
[%emt 0:00:13]} 3. g3 {[%emt 0:00:09]} b5 {[%emt 0:02:44]} 4. Bg2 {[%emt 0:00:
00]} Bb7 {[%emt 0:00:06]} 5. O-O {[%emt 0:00:05]} Be7 {[%emt 0:00:47]} 6. Bg5 {
[%emt 0:00:05]} a6 {[%emt 0:02:08]} 7. c3 {[%emt 0:00:26]} d6 {[%emt 0:04:47]}
8. Bxf6 {[%emt 0:00:40]} Bxf6 {[%emt 0:00:32]} 9. a4 {[%emt 0:00:27]} Nd7 {
[%emt 0:02:02]} 10. Na3 {[%emt 0:01:21]} Bc6 {[%emt 0:05:51]} 11. axb5 {
[%emt 0:03:59]} axb5 {[%emt 0:00:44]} 12. Qd3 {[%emt 0:00:10]} Rb8 {[%emt 0:00:
00]} 13. e4 {[%emt 0:02:59]} O-O {[%emt 0:05:22]} 14. b4 {[%emt 0:03:01]} Bb7 {
[%emt 0:14:45]} 15. Rfe1 {[%emt 0:04:38]} Ba6 {[%emt 0:01:51]} 16. Nc2 {
[%emt 0:09:01]} Rb6 {[%emt 0:05:56]} 17. Rad1 {[%emt 0:01:50]} Bb7 {[%emt 0:00:
00]} 18. h4 {[%emt 0:10:01]} Re8 {[%emt 0:01:52]} 19. Nd2 {[%emt 0:04:23]} e5 {
[%emt 0:03:14]} 20. Nb3 {[%emt 0:03:40]} Nf8 {[%emt 0:07:33]} 21. Na5 {[%emt 0:
00:00]} Bc8 {[%emt 0:02:23]} 22. Ne3 {[%emt 0:03:10]} Bd7 {[%emt 0:02:10]} 23.
Nd5 {[%emt 0:01:46]} Rb8 {[%emt 0:00:58]} 24. Qf3 {[%emt 0:05:10]} Be7 {
[%emt 0:00:56]} 25. Ne3 {[%emt 0:10:10]} exd4 {[%emt 0:02:23]} 26. cxd4 {
[%emt 0:00:14]} g6 {[%emt 0:02:34]} 27. Rc1 {[%emt 0:04:10]} h5 {[%emt 0:04:23]
} 28. Nd5 {[%emt 0:00:58]} Ne6 {[%emt 0:03:00]} 29. Red1 {[%emt 0:03:21]} c5 {
[%emt 0:04:54]} 30. dxc5 {[%emt 0:03:27]} dxc5 {[%emt 0:00:13]} 31. Qd3 {
[%emt 0:07:18]} cxb4 {[%emt 0:01:20]} 32. Nxe7+ {[%emt 0:00:32]} Rxe7 {[%emt 0:
00:00]} 33. Qd6 {[%emt 0:00:16]} Re8 {[%emt 0:04:39]} 34. Qxb4 {[%emt 0:01:19]}
Qe7 {[%emt 0:00:19]} 35. Rd6 {[%emt 0:02:39]} Rbc8 {[%emt 0:02:20]} 36. Rcd1 {
[%emt 0:00:27]} Nf8 {[%emt 0:00:21]} 37. Qd4 {[%emt 0:01:57]} Bg4 {[%emt 0:00:
00]} 38. f3 {[%emt 0:01:42]} Be6 {[%emt 0:00:26]} 39. Nc6 {[%emt 0:00:27]} Qc7
{[%emt 0:01:00]} 40. e5 {[%emt 0:08:14]} Ra8 {[%emt 0:04:14]} 41. Ra1 {[%emt 0:
00:00]} Rxa1+ {[%emt 0:01:40]} 42. Qxa1 {[%emt 0:00:43]} Bd5 {[%emt 0:04:30]}
43. Rxd5 {[%emt 0:05:23]} Qxc6 {[%emt 0:00:06]} 44. f4 {[%emt 0:00:13]} b4 {
[%emt 0:03:04]} 45. Qb2 {[%emt 0:05:28]} Rb8 {[%emt 0:08:50]} 46. Rd3 {[%emt 0:
00:00]} Qb6+ {[%emt 0:01:12]} 47. Kh2 {[%emt 0:00:01]} Ne6 {[%emt 0:01:38]} 48.
Rd6 {[%emt 0:03:11]} Qc5 {[%emt 0:02:01]} 49. Rc6 {[%emt 0:01:33]} Qe3 {
[%emt 0:01:41]} 50. Rxe6 {[%emt 0:01:33]} fxe6 {[%emt 0:00:19]} 51. Qc2 {
[%emt 0:00:04]} Rb6 {[%emt 0:06:45]} 52. Qc8+ {[%emt 0:10:02]} Kg7 {[%emt 0:00:
00]} 53. Qd7+ {[%emt 0:00:05]} Kg8 {[%emt 0:01:06]} 54. Qe8+ {[%emt 0:00:31]}
Kg7 {[%emt 0:00:17]} 55. Qe7+ {[%emt 0:00:16]} Kg8 {[%emt 0:00:36]} 56. Qe8+ {
[%emt 0:00:50]} Kg7 {[%emt 0:00:06]} 57. Qe7+ {[%emt 0:00:15]} Kg8 {[%emt 0:00:
00]} 58. Qd8+ {[%emt 0:00:03]} Kh7 {[%emt 0:00:49]} 59. Qe7+ {[%emt 0:00:33]}
Kg8 {[%emt 0:01:32]} 1/2-1/2

[Event "44th Chess Olympiad Women 2022"]
[Site "Chennai"]
[Date "2022.08.08"]
[Round "10.8"]
[White "Mungunzul, Bat-Erdene"]
[Black "Krasteva, Beloslava"]
[Result "1-0"]
[WhiteElo "2163"]
[BlackElo "2249"]
[Annotator "RC"]
[PlyCount "133"]
[EventDate "2022.??.??"]
[TimeControl "60"]

1. d4 {[%emt 0:00:02]} Nf6 {[%emt 0:00:06]} 2. c4 {[%emt 0:00:11]} e6 {[%emt 0:
00:00]} 3. Nc3 {[%emt 0:00:10]} Bb4 {[%emt 0:00:07]} 4. Qc2 {[%emt 0:00:09]} d6
{[%emt 0:00:07]} 5. Nf3 {[%emt 0:01:42]} Nbd7 {[%emt 0:00:54]} 6. Bd2 {[%emt 0:
00:00]} b6 {[%emt 0:02:03]} 7. e4 {[%emt 0:02:00]} Bb7 {[%emt 0:01:35]} 8. Bd3
{[%emt 0:00:31]} e5 {[%emt 0:01:49]} 9. Nd5 {[%emt 0:12:51]} Bxd2+ {[%emt 0:00:
00]} 10. Qxd2 {[%emt 0:01:56]} O-O {[%emt 0:05:47]} 11. O-O {[%emt 0:02:07]} c6
{[%emt 0:15:18]} 12. Ne3 {[%emt 0:06:40]} Re8 {[%emt 0:06:48]} 13. Nf5 {
[%emt 0:12:27]} Nf8 {[%emt 0:00:37]} 14. Rfe1 {[%emt 0:00:52]} Bc8 {[%emt 0:00:
00]} 15. Ne3 {[%emt 0:06:08]} Qc7 {[%emt 0:08:01]} 16. Qc2 {[%emt 0:10:41]} Ng6
{[%emt 0:02:46]} 17. b4 {[%emt 0:02:43]} Nf4 {[%emt 0:01:27]} 18. dxe5 {
[%emt 0:01:04]} dxe5 {[%emt 0:00:12]} 19. c5 {[%emt 0:00:09]} bxc5 {[%emt 0:00:
00]} 20. bxc5 {[%emt 0:00:08]} Nd7 {[%emt 0:00:42]} 21. Rec1 {[%emt 0:08:14]}
Bb7 {[%emt 0:24:00]} 22. Bc4 {[%emt 0:08:00]} Nxc5 {[%emt 0:00:36]} 23. Ng5 {
[%emt 0:00:07]} Nce6 {[%emt 0:01:24]} 24. Bxe6 {[%emt 0:00:37]} Nxe6 {[%emt 0:
00:00]} 25. Nxe6 {[%emt 0:00:06]} Rxe6 {[%emt 0:00:11]} 26. Qc5 {[%emt 0:00:08]
} Qe7 {[%emt 0:03:05]} 27. Qa5 {[%emt 0:03:33]} Qd8 {[%emt 0:03:00]} 28. Qa3 {
[%emt 0:01:21]} g6 {[%emt 0:03:43]} 29. Rab1 {[%emt 0:00:17]} Bc8 {[%emt 0:00:
00]} 30. h3 {[%emt 0:02:43]} a5 {[%emt 0:02:43]} 31. Rd1 {[%emt 0:01:44]} Qc7 {
[%emt 0:00:22]} 32. Qc5 {[%emt 0:00:45]} Ba6 {[%emt 0:01:14]} 33. Rb6 {[%emt 0:
00:00]} Qa7 {[%emt 0:00:51]} 34. Rxc6 {[%emt 0:02:51]} Qxc5 {[%emt 0:00:06]}
35. Rxc5 {[%emt 0:00:06]} Bb7 {[%emt 0:00:17]} 36. f3 {[%emt 0:00:15]} a4 {
[%emt 0:01:00]} 37. Rd7 {[%emt 0:00:54]} Bc6 {[%emt 0:00:15]} 38. Rc7 {[%emt 0:
00:00]} Ra6 {[%emt 0:00:55]} 39. a3 {[%emt 0:01:16]} f6 {[%emt 0:00:34]} 40.
Ng4 {[%emt 0:01:34]} h5 {[%emt 0:00:31]} 41. Ne3 {[%emt 0:33:31]} Kf8 {[%emt 0:
00:00]} 42. h4 {[%emt 0:00:00]} Be8 {[%emt 0:04:48]} 43. Nd5 {[%emt 0:00:00]}
Rac6 {[%emt 0:02:51]} 44. Kf2 {[%emt 0:00:00]} Rxc7 {[%emt 0:03:24]} 45. Rxc7 {
[%emt 0:00:00]} Bc6 {[%emt 0:01:09]} 46. Nb4 {[%emt 0:00:00]} Be8 {[%emt 0:00:
00]} 47. Ke3 {[%emt 0:00:00]} Rd6 {[%emt 0:00:47]} 48. Rc1 {[%emt 0:00:00]} Kf7
{[%emt 0:01:02]} 49. g3 {[%emt 0:00:00]} Kf8 {[%emt 0:04:26]} 50. f4 {[%emt 0:
00:00]} exf4+ {[%emt 0:00:07]} 51. gxf4 {[%emt 0:00:00]} Bf7 {[%emt 0:02:00]}
52. Nc6 {[%emt 0:00:00]} Be8 {[%emt 0:01:27]} 53. Nd4 {[%emt 0:00:00]} Rb6 {
[%emt 0:01:32]} 54. e5 {[%emt 0:00:00]} Bd7 {[%emt 0:02:22]} 55. Ke4 {[%emt 0:
00:00]} Ke7 {[%emt 0:00:30]} 56. Rc7 {[%emt 0:00:00]} Kd8 {[%emt 0:01:10]} 57.
Rc3 {[%emt 0:00:00]} fxe5 {[%emt 0:02:44]} 58. fxe5 {[%emt 0:00:00]} Rb1 {
[%emt 0:01:23]} 59. e6 {[%emt 0:01:37]} Be8 {[%emt 0:00:01]} 60. Ke5 {[%emt 0:
00:00]} Ke7 {[%emt 0:00:41]} 61. Rc7+ {[%emt 0:02:07]} Kf8 {[%emt 0:00:01]} 62.
Nf3 {[%emt 0:01:23]} Rb5+ {[%emt 0:00:29]} 63. Kd4 {[%emt 0:00:56]} Rb3 {
[%emt 0:02:21]} 64. Ng5 {[%emt 0:00:08]} Rxa3 {[%emt 0:00:28]} 65. Nh7+ {
[%emt 0:03:01]} Kg8 {[%emt 0:00:01]} 66. Nf6+ {[%emt 0:00:08]} Kf8 {[%emt 0:00:
00]} 67. Rh7 {[%emt 0:00:08]} 1-0

[Event "44th Chess Olympiad Women 2022"]
[Site "Chennai"]
[Date "2022.08.08"]
[Round "10.8"]
[White "Peycheva, Gergana"]
[Black "Munkhzul, Turmunkh"]
[Result "1/2-1/2"]
[WhiteElo "2295"]
[BlackElo "2277"]
[Annotator "NA RC"]
[PlyCount "93"]
[EventDate "2022.??.??"]
[TimeControl "60"]

1. d4 {[%emt 0:00:03]} Nf6 {[%emt 0:00:16]} 2. c4 {[%emt 0:00:25]} e6 {[%emt 0:
00:00]} 3. Nc3 {[%emt 0:00:22]} Bb4 {[%emt 0:00:21]} 4. Qc2 {[%emt 0:01:00]}
O-O {[%emt 0:00:40]} 5. e4 {[%emt 0:00:36]} d5 {[%emt 0:00:28]} 6. e5 {[%emt 0:
00:00]} Ne4 {[%emt 0:00:19]} 7. Bd3 {[%emt 0:00:24]} c5 {[%emt 0:00:41]} 8. Nf3
{[%emt 0:00:39]} cxd4 {[%emt 0:00:49]} 9. Nxd4 {[%emt 0:00:29]} Nd7 {[%emt 0:
00:00]} 10. Bf4 {[%emt 0:00:31]} Ndc5 {[%emt 0:00:54]} 11. O-O {[%emt 0:01:23]}
Bxc3 {[%emt 0:01:11]} 12. bxc3 {[%emt 0:00:48]} Bd7 {[%emt 0:00:40]} 13. cxd5 {
[%emt 0:06:21]} Ba4 {[%emt 0:02:51]} 14. Nb3 {[%emt 0:16:22]} Nxd3 {[%emt 0:00:
00]} 15. Qxd3 {[%emt 0:02:32]} Qxd5 {[%emt 0:01:00]} 16. Qe3 {[%emt 0:10:29]}
b6 {[%emt 0:10:12]} 17. Rfd1 {[%emt 0:06:14]} Qc6 {[%emt 0:03:50]} 18. Rd4 {
[%emt 0:04:59]} Bxb3 {[%emt 0:01:17]} 19. Rxe4 {[%emt 0:12:16]} Bc2 {[%emt 0:
00:00]} 20. Rd4 {[%emt 0:03:02]} Rac8 {[%emt 0:01:45]} 21. c4 {[%emt 0:09:52]}
Rfd8 {[%emt 0:03:26]} 22. Rxd8+ {[%emt 0:06:41]} Rxd8 {[%emt 0:00:06]} 23. Qc3
{[%emt 0:00:02]} Qa4 {[%emt 0:05:46]} 24. a3 {[%emt 0:05:45]} Rd3 {[%emt 0:00:
00]} 25. Qb4 {[%emt 0:00:46]} Qd7 {[%emt 0:00:15]} 26. Re1 {[%emt 0:05:44]} h6
{[%emt 0:07:53]} 27. h3 {[%emt 0:01:07]} Ba4 {[%emt 0:04:44]} 28. Rb1 {[%emt 0:
00:00]} Bc6 {[%emt 0:00:26]} 29. Be3 {[%emt 0:00:50]} Qd8 {[%emt 0:08:39]} 30.
c5 {[%emt 0:01:01]} Rd1+ {[%emt 0:01:09]} 31. Rxd1 {[%emt 0:00:46]} Qxd1+ {
[%emt 0:00:06]} 32. Kh2 {[%emt 0:00:18]} Qd5 {[%emt 0:00:34]} 33. Qg4 {[%emt 0:
00:00]} h5 {[%emt 0:04:22]} 34. Qg3 {[%emt 0:00:22]} h4 {[%emt 0:00:28]} 35.
Qg4 {[%emt 0:00:27]} bxc5 {[%emt 0:05:14]} 36. Bf4 {[%emt 0:00:19]} c4 {
[%emt 0:01:42]} 37. f3 {[%emt 0:00:05]} c3 {[%emt 0:01:13]} 38. Qxh4 {[%emt 0:
00:00]} c2 {[%emt 0:00:15]} 39. Qe1 {[%emt 0:01:01]} Qc4 {[%emt 0:03:53]} 40.
Bc1 {[%emt 0:00:52]} Bd5 {[%emt 0:02:10]} 41. Qe3 {[%emt 0:05:29]} Qc7 {
[%emt 0:03:56]} 42. Kh1 {[%emt 0:01:47]} Qc4 {[%emt 0:05:01]} 43. Kh2 {[%emt 0:
00:00]} Qc7 {[%emt 0:01:42]} 44. Kh1 {[%emt 0:01:38]} Qc4 {[%emt 0:00:14]} 45.
Kh2 {[%emt 0:03:45]} Qc7 {[%emt 0:01:07]} 46. Kh1 {[%emt 0:00:32]} Qc4 {
[%emt 0:00:12]} 47. Kh2 {[%emt 0:00:55]} 1/2-1/2